bitfinex/quotes_ETHUSD_20230830
["timestamp","ask_amount","ask_price","bid_price","bid_amount"]
[1693381969613,4.78770247,1718.6,1718.5,1.34159352]
[1693381971042,4.78770247,1718.6,1718.5,1.34155886]
[1693381972248,4.78770247,1718.6,1718.5,3.16575972]
[1693381974256,6.11224668,1718.6,1718.5,3.16575972]
[1693381979274,6.11224668,1718.6,1718.5,1.34155886]
[1693381980267,0.29356668,1718.6,1718.5,1.34155886]
[1693381980468,5.81842,1718.7,1718.6,0.58713336]
[1693381980670,5.81842,1718.7,1718.6,1.59856092]
[1693381981282,4.73962883,1718.7,1718.6,1.59856092]
[1693381982371,4.73962883,1718.7,1718.6,1.01142756]
[1693381983278,5.8185,1718.7,1718.6,1.01142756]
[1693381986369,5.8185,1718.7,1718.6,3.1396619]
[1693381986866,5.8185,1718.7,1718.6,1.01142756]
[1693381987186,5.8185,1718.7,1718.6,3.1396619]
[1693381987571,5.8185,1718.7,1718.6,1.01142756]
[1693381988258,5.8185,1718.7,1718.6,3.1396619]
[1693381988568,6.05230924,1718.7,1718.6,1.01142756]
[1693381988986,6.05230924,1718.7,1718.6,3.1396619]
[1693381994851,6.05230924,1718.7,1718.6,2.19170656]
[1693381995055,0.23380924,1718.7,1718.6,8.01038656]
[1693381995273,0.23380924,1718.7,1718.6,10.52436338]
[1693381998258,1.51570017,1718.8,1718.6,10.52436338]
[1693381998457,1.51570017,1718.8,1718.7,3.14797783]
[1693381998694,1.51570017,1718.8,1718.7,4.41406919]
[1693381999258,1.51570017,1718.8,1718.7,4.41430399]
[1693382000391,0.90891633,1718.8,1718.7,4.41430399]
[1693382001313,13.29234915,1718.9,1718.7,2.27740206]
[1693382001511,13.29234915,1718.9,1718.8,2.84331098]
[1693382001814,11.46574915,1718.9,1718.8,2.84331098]
[1693382002915,11.46574915,1718.9,1718.8,1.0113107]
[1693382003502,11.46574915,1718.9,1718.8,2.53788561]
[1693382004015,5.64787915,1718.9,1718.8,2.53788561]
[1693382005180,5.64787915,1718.9,1718.8,2.23256916]
[1693382005885,5.86565352,1718.9,1718.8,2.23256916]
[1693382006400,5.86565352,1718.9,1718.8,1.92725384]
[1693382007090,0.21777437,1718.9,1718.8,1.92725384]
[1693382007278,0.21777437,1718.9,1718.8,1.62190761]
[1693382007477,6.03544437,1718.9,1718.8,1.62190761]
[1693382008185,6.03544437,1718.9,1718.8,1.0113107]
[1693382009306,6.03544437,1718.9,1718.7,1.26609136]
[1693382009684,6.03544437,1718.9,1718.6,5.81868]
[1693382009883,6.03544437,1718.9,1718.7,1.01129477]
[1693382010509,11.85311437,1718.9,1718.7,1.01129477]
[1693382016825,11.85311437,1718.9,1718.6,5.81868]
[1693382017129,13.64451437,1718.9,1718.7,1.01129314]
[1693382020802,13.42674,1718.9,1718.7,1.01129314]
[1693382040323,13.42674,1718.9,1718.7,1.62189005]
[1693382050737,11.63534,1718.9,1718.7,2.45754137]
[1693382050941,5.81767,1718.9,1718.8,1.01129314]
[1693382056857,11.63534,1718.9,1718.8,1.01129314]
[1693382063869,5.81767,1718.9,1718.7,3.37348451]
[1693382064189,5.81767,1718.9,1718.8,1.34864159]
[1693382066862,5.81767,1718.9,1718.8,0.33734845]
[1693382067067,5.81767,1718.9,1718.8,1.34859215]
[1693382074014,13.4566,1719.0,1718.8,1.34859215]
[1693382074213,13.4566,1719.0,1718.7,8.18143862]
[1693382074419,13.4566,1719.0,1718.8,1.01123789]
[1693382075645,13.4566,1719.0,1718.8,1.62231281]
[1693382087154,7.639,1719.0,1718.8,1.62231281]
[1693382091262,13.45652,1719.0,1718.8,1.62231281]
[1693382099580,13.45652,1719.0,1718.9,1.01121956]
[1693382099742,13.45652,1719.0,1718.8,1.62235785]
[1693382104498,17.18240987,1719.0,1718.8,1.62235785]
[1693382104793,13.04134,1718.9,1718.8,0.61113829]
[1693382106705,13.04134,1718.9,1718.7,1.52784573]
[1693382108607,18.85901,1718.9,1718.7,1.52784573]
[1693382109517,18.85901,1718.9,1718.7,1.52811538]
[1693382109723,21.74079999,1718.9,1718.7,1.52811538]
[1693382110517,21.74079999,1718.9,1718.8,1.01124739]
[1693382110911,21.74079999,1718.9,1718.7,0.61124615]
[1693382111827,21.74079999,1718.9,1718.7,1.62249354]
[1693382112009,21.74079999,1718.9,1718.8,1.01124739]
[1693382112194,21.74079999,1718.9,1718.7,0.61124615]
[1693382117708,22.21109499,1718.9,1718.7,0.61124615]
[1693382119722,1.29967506,1718.8,1718.6,0.61124615]
[1693382120014,11.6367,1718.7,1718.6,0.61124615]
[1693382126533,11.6367,1718.7,1718.6,1.0113331]
[1693382126733,11.6367,1718.7,1718.5,2.53944848]
[1693382126933,11.6367,1718.7,1718.6,1.0113331]
[1693382127343,11.6367,1718.7,1718.5,2.53944848]
[1693382127500,11.6367,1718.7,1718.6,1.0113331]
[1693382127829,11.6367,1718.7,1718.6,0.61124615]
[1693382132558,12.11229533,1718.7,1718.6,0.61124615]
[1693382133949,11.6367,1718.7,1718.6,0.61124615]
[1693382138461,13.69346151,1718.7,1718.6,0.61124615]
[1693382138668,19.51181151,1718.7,1718.6,1.62257925]
[1693382139533,19.51181151,1718.7,1718.6,0.61124615]
[1693382144964,17.45505,1718.7,1718.6,0.61124615]
[1693382151004,8.99058506,1718.8,1718.6,1.92820233]
[1693382151005,11.63629,1718.8,1718.6,1.92820233]
[1693382151156,11.63629,1718.8,1718.7,1.62237733]
[1693382151354,11.63629,1718.8,1718.7,0.61104423]
[1693382160529,5.81805,1718.8,1718.7,0.61104423]
[1693382161120,5.81805,1718.8,1718.7,0.98721812]
[1693382161329,5.81805,1718.8,1718.7,1.99855122]
[1693382163731,5.81771,1718.9,1718.7,1.99855122]
[1693382163930,5.81771,1718.9,1718.8,2.10237733]
[1693382168467,11.63557,1718.9,1718.8,1.62237733]
[1693382175372,13.55719,1718.9,1718.8,1.0113331]
[1693382175564,13.55719,1718.9,1718.7,1.52791346]
[1693382175767,11.63557,1718.9,1718.7,1.52791346]
[1693382178186,11.63557,1718.9,1718.8,1.0113331]
[1693382178387,11.63557,1718.9,1718.7,1.52791346]
[1693382180633,11.63557,1718.9,1718.8,1.0113331]
[1693382180815,11.63557,1718.9,1718.7,1.52791346]
[1693382181117,11.63557,1718.9,1718.8,1.0113331]
[1693382181292,11.63557,1718.9,1718.7,1.52791346]
[1693382182491,11.63557,1718.9,1718.8,1.0113331]
[1693382182692,11.63557,1718.9,1718.7,1.52791346]
[1693382182926,5.81771,1718.9,1718.8,0.61104423]
[1693382183229,5.81771,1718.9,1718.8,1.62237733]
[1693382184630,11.63538,1718.9,1718.8,1.62237733]
[1693382192943,5.81767,1718.9,1718.8,1.62237733]
[1693382194237,11.63534,1718.9,1718.8,1.62237733]
[1693382201038,5.81767,1718.9,1718.8,1.62237733]
[1693382201239,11.63534,1718.9,1718.8,1.62237733]
[1693382201853,5.81767,1718.9,1718.8,2.53924656]
[1693382202028,11.63534,1718.9,1718.8,2.95303784]
[1693382202923,5.81767,1718.9,1718.8,2.34199361]
[1693382205460,5.81767,1718.9,1718.8,1.92820233]
[1693382211160,11.63534,1718.9,1718.8,1.92820233]
[1693382211895,5.81767,1718.9,1718.8,1.92820233]
[1693382218213,5.81767,1718.9,1718.8,0.91686923]
[1693382218512,5.81767,1718.9,1718.8,1.92820233]
[1693382219782,11.63534,1718.9,1718.8,1.92820233]
[1693382221313,11.63534,1718.9,1718.8,0.91686923]
[1693382221492,11.63534,1718.9,1718.8,1.92820233]
[1693382221698,11.63534,1718.9,1718.8,0.91686923]
[1693382221951,11.63534,1718.9,1718.8,1.92820233]
[1693382225945,11.63534,1718.9,1718.8,0.91686923]
[1693382226313,11.63534,1718.9,1718.8,1.92820233]
[1693382226517,11.63534,1718.9,1718.8,2.53943281]
[1693382226912,11.63534,1718.9,1718.8,1.52809971]
[1693382228666,11.63534,1718.9,1718.8,2.5394766]
[1693382228816,11.63534,1718.9,1718.8,1.92820233]
[1693382229019,11.63534,1718.9,1718.8,0.91686923]
[1693382229218,11.63534,1718.9,1718.8,1.52813847]
[1693382234947,11.63534,1718.9,1718.8,1.92820233]
[1693382235249,11.63534,1718.9,1718.8,0.91686923]
[1693382253286,11.63534,1718.9,1718.8,1.52812339]
[1693382254707,11.63534,1718.9,1718.8,0.91686923]
[1693382254867,5.81767,1718.9,1718.8,0.91686923]
[1693382256697,11.63534,1718.9,1718.8,0.91686923]
[1693382257705,11.63534,1718.9,1718.8,1.52811129]
[1693382259007,11.63534,1718.9,1718.8,1.92820233]
[1693382259307,11.63534,1718.9,1718.8,0.91686923]
[1693382260314,11.63534,1718.9,1718.8,1.52811212]
[1693382266718,11.63534,1718.9,1718.8,2.53937828]
[1693382267100,11.63534,1718.9,1718.8,1.52818232]
[1693382270217,11.63534,1718.9,1718.8,0.91690939]
[1693382275223,5.81767,1718.9,1718.8,0.91690939]
[1693382275523,5.81767,1718.9,1718.8,1.23197451]
[1693382275722,5.81767,1718.9,1718.8,2.24317047]
[1693382290681,5.81767,1718.9,1718.8,1.92810535]
[1693382292048,5.81767,1718.9,1718.8,0.91690939]
[1693382293577,11.63431,1719.1,1718.8,3.63065121]
[1693382293744,11.63431,1719.1,1718.9,2.10239064]
[1693382293945,11.63431,1719.1,1719.0,0.61119468]
[1693382294146,11.63431,1719.1,1719.0,1.62239064]
[1693382295581,5.81708,1719.1,1719.0,1.62239064]
[1693382296065,11.63431,1719.1,1719.0,1.62239064]
[1693382299804,11.63431,1719.1,1719.0,1.01119596]
[1693382301706,11.63431,1719.1,1719.0,1.62239064]
[1693382303913,11.63431,1719.1,1719.0,1.01119596]
[1693382306946,11.63431,1719.1,1719.0,1.62239064]
[1693382335900,11.63431,1719.1,1719.0,0.61119468]
[1693382336053,11.63431,1719.1,1719.0,1.62239064]
[1693382338724,11.63431,1719.1,1719.0,2.53930003]
[1693382343719,11.63431,1719.1,1719.0,1.92810535]
[1693382360550,19.378762,1719.1,1719.0,1.62245632]
[1693382361160,19.378762,1719.1,1719.0,0.61126036]
[1693382364165,19.378762,1719.1,1719.0,1.62245632]
[1693382364362,19.378762,1719.1,1719.0,0.61126036]
[1693382365353,17.45154,1719.1,1719.0,0.61126036]
[1693382374584,17.91302829,1719.1,1719.0,0.61126036]
[1693382384813,17.91302829,1719.1,1719.0,1.62245632]
[1693382385523,17.91302829,1719.1,1719.0,0.61126036]
[1693382386211,17.91302829,1719.1,1719.0,1.62245632]
[1693382386779,17.91302829,1719.1,1719.0,0.61126036]
[1693382387500,11.63431,1719.1,1719.0,0.61126036]
[1693382387700,11.63431,1719.1,1719.0,1.52816975]
[1693382389314,11.63431,1719.1,1719.0,1.90436091]
[1693382389514,11.63431,1719.1,1719.0,2.91555687]
[1693382389911,11.63431,1719.1,1719.0,1.99864748]
[1693382390105,11.63431,1719.1,1719.0,1.62245632]
[1693382390486,11.63431,1719.1,1719.0,0.61126036]
[1693382392431,11.63431,1719.1,1719.0,1.52816975]
[1693382393414,11.63431,1719.1,1719.0,0.61126036]
[1693382396031,11.63431,1719.1,1719.0,0.98745152]
[1693382396190,11.63431,1719.1,1719.0,1.99864748]
[1693382397224,5.81708,1719.1,1719.0,2.91555687]
[1693382397991,5.81708,1719.1,1719.0,2.30429651]
[1693382400346,5.81708,1719.1,1719.0,2.30398655]
[1693382403686,11.63407,1719.1,1719.0,1.92779539]
[1693382403820,11.63407,1719.1,1719.0,0.91672637]
[1693382404240,11.63407,1719.1,1719.0,0.61115326]
[1693382404764,5.81668,1719.2,1719.0,1.22230183]
[1693382404920,5.81655,1719.3,1719.1,1.09098336]
[1693382405124,5.81655,1719.3,1719.2,1.01106902]
[1693382405324,5.81655,1719.3,1719.2,1.49106902]
[1693382405574,11.63304,1719.3,1719.2,1.01106902]
[1693382406223,11.63304,1719.3,1719.1,0.61098336]
[1693382408536,18.86053,1719.3,1719.0,0.61098336]
[1693382408755,1.411,1719.1,1718.9,1.5274584]
[1693382409087,7.22801,1719.1,1718.9,1.5274584]
[1693382410079,7.22801,1719.1,1718.9,2.53854564]
[1693382410246,7.22801,1719.1,1719.0,1.01108724]
[1693382410431,5.81701,1719.1,1719.0,1.01108724]
[1693382411076,5.81701,1719.1,1718.9,1.5274584]
[1693382412568,11.63402,1719.1,1718.9,1.5274584]
[1693382414251,11.63402,1719.1,1718.9,2.53854564]
[1693382414450,11.63402,1719.1,1719.0,1.01108724]
[1693382414844,13.563481,1719.1,1718.9,1.6220706]
[1693382415143,13.563481,1719.1,1718.7,0.61098336]
[1693382415144,1.411,1719.0,1718.7,0.61098336]
[1693382415343,18.86401,1718.9,1718.7,0.61098336]
[1693382416269,13.04634,1718.9,1718.7,0.61098336]
[1693382418161,13.04634,1718.9,1718.7,1.62220357]
[1693382418349,15.121193,1718.9,1718.8,1.01122021]
[1693382419050,15.121193,1718.9,1718.7,0.61098336]
[1693382420546,15.121193,1718.9,1718.6,1.5274584]
[1693382420846,15.121193,1718.9,1718.6,2.53867349]
[1693382422298,13.04634,1718.9,1718.7,1.62219845]
[1693382422465,13.04634,1718.9,1718.8,1.01119302]
[1693382422668,13.04634,1718.9,1718.7,0.0043976]
[1693382423475,13.04634,1718.9,1718.7,1.01559152]
[1693382423655,13.04634,1718.9,1718.7,0.0043976]
[1693382423861,15.121193,1718.9,1718.7,1.01559255]
[1693382424085,15.121193,1718.9,1718.7,0.0043976]
[1693382424677,15.121193,1718.9,1718.7,1.0155912]
[1693382424878,15.121193,1718.9,1718.7,0.0043976]
[1693382425962,20.938863,1718.9,1718.7,0.0043976]
[1693382426166,3.5048863,1718.8,1718.7,0.0043976]
[1693382426397,20.9589163,1718.8,1718.7,0.0043976]
[1693382428003,15.1409063,1718.8,1718.7,0.0043976]
[1693382428902,15.1409063,1718.8,1718.7,1.01560239]
[1693382429098,15.1409063,1718.8,1718.7,0.0043976]
[1693382429768,15.1409063,1718.8,1718.7,1.01560239]
[1693382430066,20.9589163,1718.8,1718.7,0.0043976]
[1693382431498,20.9589163,1718.8,1718.5,1.62226411]
[1693382431706,2.09589163,1718.7,1718.6,1.01128075]
[1693382431901,13.73259163,1718.7,1718.6,1.01128075]
[1693382432203,11.6367,1718.7,1718.5,0.61098336]
[1693382432539,11.6367,1718.7,1718.6,0.0044046]
[1693382434688,11.6367,1718.7,1718.6,1.01568535]
[1693382435010,13.5729,1718.7,1718.6,0.0044046]
[1693382435175,11.6367,1718.7,1718.6,0.0044046]
[1693382435369,13.73265963,1718.7,1718.6,0.0044046]
[1693382452539,11.6367,1718.7,1718.6,0.0044046]
[1693382454072,11.6367,1718.7,1718.6,1.01568535]
[1693382458870,11.6367,1718.7,1718.6,0.61538796]
[1693382459076,11.6367,1718.7,1718.6,0.0044046]
[1693382459976,11.6367,1718.7,1718.6,0.61538796]
[1693382464747,21.18372454,1718.7,1718.6,0.0044046]
[1693382464952,24.18372454,1718.7,1718.6,0.0044046]
[1693382465377,26.05882454,1718.7,1718.4,0.61098336]
[1693382465582,3.0,1718.6,1718.4,0.61098336]
[1693382465784,17.45706,1718.5,1718.4,0.61098336]
[1693382466509,17.45706,1718.5,1718.4,0.61532504]
[1693382467376,17.45706,1718.5,1718.4,0.00434168]
[1693382467777,17.45706,1718.5,1718.4,0.61532504]
[1693382468389,17.45706,1718.5,1718.4,0.00434168]
[1693382469290,17.45706,1718.5,1718.4,0.61532504]
[1693382469493,17.45706,1718.5,1718.4,0.61098336]
[1693382470435,20.35706,1718.5,1718.4,0.61532504]
[1693382471083,20.35706,1718.5,1718.4,1.01571433]
[1693382472100,20.35706,1718.5,1718.4,0.61532504]
[1693382472287,20.35706,1718.5,1718.4,1.01571433]
[1693382472632,20.35706,1718.5,1718.4,0.00434168]
[1693382472913,20.35706,1718.5,1718.4,0.61532504]
[1693382476014,20.35706,1718.5,1718.4,0.00434168]
[1693382476435,20.35706,1718.5,1718.3,2.53883105]
[1693382477494,20.35706,1718.5,1718.4,0.00434048]
[1693382478528,20.35706,1718.5,1718.3,2.53883105]
[1693382479425,20.35706,1718.5,1718.4,0.00434048]
[1693382480324,20.35706,1718.5,1718.3,2.53883105]
[1693382481518,20.35706,1718.5,1718.4,0.00417197]
[1693382482332,20.35706,1718.5,1718.3,2.53883105]
[1693382483448,20.35706,1718.5,1718.4,0.00417197]
[1693382483753,22.44685408,1718.5,1718.4,0.00417197]
[1693382484557,22.44685408,1718.5,1718.3,2.53883105]
[1693382484759,20.35706,1718.5,1718.3,2.53883105]
[1693382485461,20.35706,1718.5,1718.4,0.00417197]
[1693382486467,20.35706,1718.5,1718.3,2.53883105]
[1693382487462,20.35706,1718.5,1718.4,0.00417197]
[1693382488359,20.35706,1718.5,1718.3,1.62235601]
[1693382488559,20.35706,1718.5,1718.4,1.01137265]
[1693382488921,20.35706,1718.5,1718.3,1.62235601]
[1693382489648,20.35706,1718.5,1718.4,0.00417197]
[1693382490664,20.35706,1718.5,1718.3,1.62235601]
[1693382491368,20.35706,1718.5,1718.4,0.00417197]
[1693382492372,20.35706,1718.5,1718.3,1.62235601]
[1693382493523,20.35706,1718.5,1718.4,0.00417076]
[1693382494364,20.35706,1718.5,1718.3,1.62235601]
[1693382495465,20.35706,1718.5,1718.4,0.00416595]
[1693382496269,20.35706,1718.5,1718.4,1.0155386]
[1693382496566,20.35706,1718.5,1718.3,1.5274584]
[1693382497474,20.35706,1718.5,1718.4,0.00416956]
[1693382497676,23.07045539,1718.5,1718.4,0.00416956]
[1693382497968,23.07045539,1718.5,1718.4,1.01554221]
[1693382498168,23.07045539,1718.5,1718.4,0.00416956]
[1693382498340,23.07045539,1718.5,1718.3,0.61098336]
[1693382498546,20.35706,1718.5,1718.3,0.61098336]
[1693382498781,20.35706,1718.5,1718.3,1.5274584]
[1693382498929,20.35706,1718.5,1718.3,2.53883105]
[1693382499133,20.35706,1718.5,1718.4,1.01137265]
[1693382499362,20.35706,1718.5,1718.4,1.62235601]
[1693382499523,20.35706,1718.5,1718.4,0.61515292]
[1693382505163,20.35706,1718.5,1718.4,1.62652557]
[1693382510312,20.35706,1718.5,1718.4,2.54300061]
[1693382511680,20.35706,1718.5,1718.4,1.93201725]
[1693382511877,20.35706,1718.5,1718.4,1.53206543]
[1693382512115,20.35706,1718.5,1718.4,1.93201725]
[1693382512308,20.35706,1718.5,1718.4,0.9206446]
[1693382513005,23.07045539,1718.5,1718.4,0.9206446]
[1693382515010,23.07045539,1718.5,1718.4,1.53207197]
[1693382515215,20.35706,1718.5,1718.4,1.53207197]
[1693382522950,20.35706,1718.5,1718.4,1.93201725]
[1693382523257,14.53804,1718.5,1718.4,1.93201725]
[1693382523628,14.53804,1718.5,1718.4,0.9206446]
[1693382527662,2.9,1718.5,1718.4,1.23607651]
[1693382527828,8.71902,1718.5,1718.4,2.24744916]
[1693382528024,2.9,1718.5,1718.4,2.24744916]
[1693382538694,2.9,1718.5,1718.4,2.72744916]
[1693382562152,8.71902,1718.5,1718.4,2.54318952]
[1693382562308,8.71902,1718.5,1718.4,1.53181687]
[1693382564035,8.71902,1718.5,1718.4,1.93201725]
[1693382564442,8.71902,1718.5,1718.4,0.9206446]
[1693382566847,8.71902,1718.5,1718.4,0.61543968]
[1693382567007,10.366724,1718.5,1718.4,0.61543968]
[1693382567436,10.366724,1718.5,1718.4,1.62681233]
[1693382567841,10.366724,1718.5,1718.4,0.61543968]
[1693382571839,8.71902,1718.5,1718.4,0.61543968]
[1693382572254,8.71902,1718.5,1718.4,1.53191472]
[1693382572441,2.9,1718.5,1718.4,1.53191472]
[1693382572654,2.9,1718.5,1718.4,1.93201725]
[1693382573031,2.9,1718.5,1718.4,1.53186821]
[1693382573237,2.9,1718.5,1718.4,1.93201725]
[1693382573660,2.9,1718.5,1718.4,0.9206446]
[1693382574868,2.9,1718.5,1718.4,1.53187933]
[1693382575371,2.9,1718.5,1718.4,2.54325198]
[1693382575687,8.71902,1718.5,1718.4,2.54325198]
[1693382578595,8.71902,1718.5,1718.4,1.62677694]
[1693382578797,8.71902,1718.5,1718.4,2.54325198]
[1693382579101,8.71902,1718.5,1718.4,2.54356239]
[1693382579676,8.71902,1718.5,1718.4,1.62673009]
[1693382579878,8.71902,1718.5,1718.4,2.54356239]
[1693382580063,8.71902,1718.5,1718.4,1.62673009]
[1693382581602,8.71902,1718.5,1718.4,0.00416956]
[1693382581805,14.53804,1718.5,1718.4,1.62672816]
[1693382581975,16.767646,1718.5,1718.4,1.62672816]
[1693382582167,16.767646,1718.5,1718.4,0.61538344]
[1693382587073,16.767646,1718.5,1718.4,0.00416956]
[1693382587503,16.767646,1718.5,1718.3,1.52803471]
[1693382588467,16.767646,1718.5,1718.4,0.00416836]
[1693382589911,16.767646,1718.5,1718.3,1.52803471]
[1693382590110,14.53804,1718.5,1718.3,1.52803471]
[1693382590286,14.53804,1718.5,1718.4,1.01134472]
[1693382590606,14.53804,1718.5,1718.4,0.00416956]
[1693382591513,14.53804,1718.5,1718.3,0.61121388]
[1693382592436,14.53804,1718.5,1718.4,0.00416956]
[1693382593534,14.53804,1718.5,1718.3,0.61121388]
[1693382594541,14.53804,1718.5,1718.4,0.00417076]
[1693382595438,14.53804,1718.5,1718.3,0.61121388]
[1693382596444,14.53804,1718.5,1718.4,0.00417076]
[1693382597539,14.53804,1718.5,1718.3,0.61121388]
[1693382598411,14.53804,1718.5,1718.4,0.00416956]
[1693382598602,16.81362869,1718.5,1718.4,0.00416956]
[1693382599546,16.81362869,1718.5,1718.3,0.61121388]
[1693382599723,14.53804,1718.5,1718.3,0.61121388]
[1693382600446,14.53804,1718.5,1718.4,0.00416956]
[1693382601441,14.53804,1718.5,1718.3,0.61121388]
[1693382602454,14.53804,1718.5,1718.4,0.00416715]
[1693382603448,14.53804,1718.5,1718.3,0.61121388]
[1693382604649,14.53804,1718.5,1718.4,0.00416836]
[1693382604816,16.81362869,1718.5,1718.4,0.00416836]
[1693382605454,16.81362869,1718.5,1718.3,0.61121388]
[1693382605614,14.53804,1718.5,1718.3,0.61121388]
[1693382606467,14.53804,1718.5,1718.4,0.00416836]
[1693382606974,14.53804,1718.5,1718.4,1.01557396]
[1693382607149,14.53804,1718.5,1718.4,0.00416836]
[1693382607551,14.53804,1718.5,1718.0,9.5598084]
[1693382607552,3.0,1718.2,1717.6,2.13883148]
[1693382607871,1.453804,1718.4,1717.5,0.7050274]
[1693382607872,5.87348065,1718.0,1717.5,0.7050274]
[1693382608037,23.28492,1717.9,1717.5,1.31634847]
[1693382608236,3.0,1717.8,1717.5,0.7050274]
[1693382608450,17.46519,1717.7,1717.6,0.00380531]
[1693382608769,20.46519,1717.7,1717.6,0.00380531]
[1693382617672,3.0,1717.2,1716.9,1.9074]
[1693382617998,26.16856065,1717.1,1716.9,0.1]
[1693382618166,20.47233,1717.0,1716.9,0.1]
[1693382618363,19.8649369,1717.0,1716.9,0.1]
[1693382619261,14.0408269,1717.0,1716.9,0.1]
[1693382619464,17.47233,1717.0,1716.9,0.1]
[1693382620002,21.75681065,1717.0,1716.9,0.1]
[1693382620365,18.88333,1717.0,1716.9,0.1]
[1693382620588,5.82411,1717.0,1716.9,0.1]
[1693382620799,11.64822,1717.0,1716.9,0.1]
[1693382621673,11.64822,1717.0,1716.9,0.10325708]
[1693382630410,14.54822,1717.0,1716.9,0.10325708]
[1693382635147,2.9,1717.0,1716.9,0.10325708]
[1693382638774,2.9,1717.0,1716.9,0.05325708]
[1693382639635,2.9,1717.0,1716.9,1.16048279]
[1693382640462,2.9,1717.0,1716.9,10.15296344]
[1693382642128,2.9,1717.0,1716.9,4.03396344]
[1693382642333,2.9,1717.0,1716.9,1.16048279]
[1693382643778,2.9,1717.0,1716.9,0.05325708]
[1693382654890,2.9,1717.0,1716.9,0.53325708]
[1693382655405,2.9,1717.0,1716.9,1.54534021]
[1693382656384,2.9,1717.0,1716.9,10.53782086]
[1693382658412,2.9,1717.0,1716.9,11.14552484]
[1693382658615,2.9,1717.0,1716.9,12.36123292]
[1693382658783,2.9,1717.0,1716.9,12.94368473]
[1693382659112,2.9,1717.0,1716.9,13.24753673]
[1693382659313,2.9,1717.0,1716.9,15.57820573]
[1693382660702,2.9,1717.0,1716.9,16.7936137]
[1693382661095,2.9,1717.0,1716.9,15.57820573]
[1693382661291,2.9,1717.0,1716.9,16.7936137]
[1693382662024,2.9,1717.0,1716.9,15.57820573]
[1693382663327,2.9,1717.0,1716.9,14.99575392]
[1693382664400,2.9,1717.0,1716.9,15.60576005]
[1693382665319,2.9,1717.0,1716.9,14.69420407]
[1693382667206,2.9,1717.0,1716.9,14.08419794]
[1693382668197,1.9367,1717.6,1717.1,6.119]
[1693382668418,1.9367,1717.6,1717.2,1.0919]
[1693382668598,1.9367,1717.6,1717.2,3.6848]
[1693382669430,1.9367,1717.6,1717.3,0.0032077]
[1693382674339,4.8367,1717.6,1717.3,0.0032077]
[1693382676047,1.9367,1717.6,1717.3,0.0032077]
[1693382680064,4.81018065,1717.6,1717.3,0.0032077]
[1693382680266,0.48101807,1717.5,1717.3,0.0032077]
[1693382680435,0.48101807,1717.5,1717.1,2.7306]
[1693382681450,0.48101807,1717.5,1717.2,0.00321351]
[1693382681652,2.54194295,1717.6,1717.2,0.00321351]
[1693382682551,2.54194295,1717.6,1717.1,2.7306]
[1693382683470,2.54194295,1717.6,1717.2,0.0032123]
[1693382684674,2.54194295,1717.6,1717.1,2.7306]
[1693382685276,3.44980738,1717.6,1717.1,2.7306]
[1693382685483,3.44980738,1717.6,1717.2,0.00321351]
[1693382685660,3.91583671,1717.6,1717.2,0.00321351]
[1693382686161,3.00797228,1717.6,1717.2,0.00321351]
[1693382686384,2.54194295,1717.6,1717.1,2.7306]
[1693382687380,2.54194295,1717.6,1717.2,0.0032123]
[1693382688186,3.44980738,1717.6,1717.2,0.0032123]
[1693382688493,2.54194295,1717.6,1717.1,2.7306]
[1693382689550,2.54194295,1717.6,1717.2,0.0032123]
[1693382690511,3.44980738,1717.6,1717.1,2.7306]
[1693382691394,3.44980738,1717.6,1717.2,0.0032123]
[1693382691565,3.44980738,1717.6,1717.2,1.65584159]
[1693382692195,0.60524295,1717.5,1717.2,1.65584159]
[1693382698856,0.60524295,1717.5,1717.2,10.64832224]
[1693382700789,0.60524295,1717.5,1717.2,4.52932224]
[1693382700996,0.60524295,1717.5,1717.2,1.65584159]
[1693382704203,1.51310738,1717.5,1717.2,1.65584159]
[1693382707116,0.60524295,1717.5,1717.2,1.65584159]
[1693382707672,0.60524295,1717.5,1717.2,0.4832123]
[1693382708300,0.60524295,1717.5,1717.2,0.0032123]
[1693382708505,0.60524295,1717.5,1717.2,1.01192914]
[1693382709569,0.60524295,1717.5,1717.3,0.0030779]
[1693382711098,0.60524295,1717.4,1717.3,0.0030779]
[1693382711484,0.60524295,1717.4,1717.1,2.7306]
[1693382712377,0.60524295,1717.4,1717.1,3.06466061]
[1693382712593,0.60524295,1717.4,1717.2,0.00308371]
[1693382713512,0.60524295,1717.4,1717.1,2.7306]
[1693382714527,0.60524295,1717.4,1717.2,0.00308491]
[1693382715436,0.60524295,1717.4,1717.1,2.7306]
[1693382715637,0.60524295,1717.4,1717.1,3.06466061]
[1693382716304,2.36774295,1717.4,1717.1,3.06466061]
[1693382716630,2.36774295,1717.4,1717.2,0.00308612]
[1693382717492,2.36774295,1717.4,1717.1,3.06466061]
[1693382718186,0.60524295,1717.4,1717.1,3.06466061]
[1693382718439,0.60524295,1717.4,1717.2,0.30954856]
[1693382723228,6.42799295,1717.4,1717.2,0.30954856]
[1693382723550,6.42799295,1717.4,1717.2,0.0030825]
[1693382724575,6.42799295,1717.4,1717.1,8.55423]
[1693382725681,6.42799295,1717.4,1717.2,0.00310382]
[1693382726474,6.42799295,1717.4,1717.1,8.55423]
[1693382727523,6.42799295,1717.4,1717.2,0.00310382]
[1693382728425,6.42799295,1717.4,1717.1,8.55423]
[1693382728625,6.42799295,1717.4,1717.2,0.61056543]
[1693382729048,6.42799295,1717.4,1717.1,8.55423]
[1693382729250,0.60524295,1717.4,1717.1,8.55423]
[1693382729556,0.60524295,1717.4,1717.2,0.00310262]
[1693382730564,0.60524295,1717.4,1717.1,8.55423]
[1693382731436,0.60524295,1717.4,1717.2,0.00310262]
[1693382732577,7.33598738,1717.4,1717.1,8.55423]
[1693382732761,1.33884169,1717.3,1717.1,2.7306]
[1693382733075,6.42836295,1717.3,1717.1,2.7306]
[1693382752208,5.82312,1717.3,1717.1,2.7306]
[1693382752502,6.43243393,1717.3,1717.1,2.7306]
[1693382758915,6.43243393,1717.3,1717.0,5.82396]
[1693382759218,8.21603393,1717.3,1717.0,5.82396]
[1693382759419,8.21603393,1717.3,1717.0,8.61374228]
[1693382760328,0.60931393,1717.4,1717.1,9.47248065]
[1693382760545,0.60931393,1717.4,1717.1,12.06988065]
[1693382760830,1.52328482,1717.5,1717.1,12.06988065]
[1693382760979,0.60931393,1717.4,1717.2,1.20698807]
[1693382761178,0.60931393,1717.4,1717.3,0.48]
[1693382762418,0.60933792,1717.4,1717.3,0.48]